Cogmind - Beta 10.2 @@@ ROGUE MODE // 2021.12.24 @ 12:36:52 Player: DDRAGON Result: Destroyed by Y-45 Defender with Beam Rifle Performance ------------- Evolutions (1) 500 Regions Visited (3) 600 Robots Destroyed (14) 70 Value Destroyed (356) 356 Prototype IDs (2) 40 Alien Tech Used (0) 0 Bonus (0) 0 TOTAL SCORE: 1566 Bonus ------- None Cogmind --------- Core Integrity 0/400 Matter 260/300 Energy 84/100 System Corruption 0% Temperature Cool (9) Movement Core (300) Ox5 Location -9/Storage Parts ------- > --- POWER (1) -------- (None) > --- PROPULSION (3) --- (None) > --- UTILITY (3) ------ Large Storage Unit Targeting Computer > --- WEAPON (2) ------- Mini Grenade Launcher Mini Grenade Launcher > --- INVENTORY (10) --- Targeting Computer ECM Suite Light Armor Plating Assault Rifle Flail Peak State ------------ > --- POWER ------------ Improved Ion Engine > --- PROPULSION ------- Light Treads Aluminum Leg Aluminum Leg > --- UTILITY ---------- Large Storage Unit Targeting Computer Hardened Light Armor Plating > --- WEAPON ----------- Flail Flail > --- INVENTORY -------- Ion Engine Targeting Computer ECM Suite Light Armor Plating Light Armor Plating Assault Rifle Mini Grenade Launcher Mini Grenade Launcher [Rating: 14] Favorites ----------- Power Light Ion Engine Engine Light Ion Engine Propulsion Aluminum Leg Treads Light Treads Leg Aluminum Leg Utility Large Storage Unit Device ECM Suite Storage Large Storage Unit Processor Targeting Computer Protection Hardened Light Armor Plating Weapon Assault Rifle Ballistic Gun Assault Rifle Launcher Grenade Launcher Impact Weapon Flail Build | -11 -10 -9 -9 ------- Run | Scr Mat Mat Sto Slots Evolved 2 | . . 2 . Power . | . . . . Propulsion 1 | . . 1 . Utility 1 | . . 1 . Weapon . | . . . . Parts Attached 24 | 6 5 11 2 Power 4 | 2 . 2 . Engine 4 | 2 . 2 . Core . | . . . . Reactor . | . . . . Propulsion 5 | 2 . 3 . Treads 3 | . . 3 . Leg 2 | 2 . . . Wheel . | . . . . Hover . | . . . . Flight . | . . . . Utility 6 | 1 3 2 . Device 1 | . 1 . . Storage 2 | 1 1 . . Processor 1 | . 1 . . Hackware . | . . . . Protection 2 | . . 2 . Artifact . | . . . . Weapon 9 | 1 2 4 2 Energy Gun . | . . . . Energy Cannon . | . . . . Ballistic Gun 2 | 1 1 . . Ballistic Cannon . | . . . . Launcher 3 | . 1 . 2 Special Weapon . | . . . . Impact Weapon 4 | . . 4 . Slashing Weapon . | . . . . Piercing Weapon . | . . . . Special Melee Weapon . | . . . . Unidentified Prototypes . | . . . . Parts Lost 7 | . . 1 6 Power 1 | . . . 1 Propulsion 4 | . . 1 3 Utility 1 | . . . 1 Weapon 1 | . . . 1 Highest Loss Streak 6 | . . 1 6 Average Slot Usage (%) 91 | . 96 91 79 Engine 11 | . 14 11 5 Treads 9 | . . 15 22 Leg 17 | . 28 13 . Device 3 | . 7 . . Storage 12 | . 14 11 11 Processor 7 | . 3 11 11 Protection 5 | . . 11 7 Ballistic Gun 12 | . 21 7 . Launcher 2 | . 6 . . Impact Weapon 7 | . . 10 20 Naked Turns . | . . . . Heaviest Build 32 | 11 25 32 30 Greatest Support 60 | 20 20 60 60 Greatest Overweight (x) 6 | . 1 3 6 Average Overweight (x) . | . . . . Largest Inventory Capacity 10 | 6 10 10 10 Average Capacity 9 | 5 8 10 10 Most Carried 10 | 4 10 10 7 Average Carried 5 | 1 4 8 5 Final Capacity 10 | 6 10 10 10 Final Carried 10 | 1 10 6 5 Class Distribution -------------------- 100% | Mutant Dominant Class ---------------- Mutant | -10/Materials Mutant | -9/Materials Mutant | -9/Storage Resources | -11 -10 -9 -9 ----------- Run | Scr Mat Mat Sto Matter Collected 558 | 143 118 148 149 Remotely . | . . . . Salvage Created 410 | . 170 148 92 Parts 18 | . 10 5 3 Haulers Intercepted . | . . . . Recyclers Shooed 3 | . 3 . . Parts Field Recycled . | . . . . Retrieved Matter . | . . . . Parts Self-Destructed . | . . . . Prevented . | . . . . Kills | -11 -10 -9 -9 ------- Run | Scr Mat Mat Sto Combat Hostiles Destroyed 12 | . 5 5 2 Melee 3 | . . 3 . Guns 4 | . 3 1 . AOE 4 | . 2 . 2 Classes Destroyed 5 | . 3 1 1 Worker 1 | . . . 1 Recycler 1 | . 1 . . Swarmer 6 | . 3 3 . Grunt 4 | . 2 . 2 Sentry 2 | . . 2 . Best Kill Streak 4 | . 4 2 2 Combat Bots Only 3 | . 3 2 2 Max Kills in Single Turn 2 | . 1 1 2 Gunslinging . | . . . . Exploded 2 | . 1 . 2 Melee 1 | . . 1 . Uniques/NPCs Destroyed . | . . . . Combat | -11 -10 -9 -9 -------- Run | Scr Mat Mat Sto Damage Taken 1673 | . 170 605 898 Core 439 | . 28 96 315 Absorbed by Shields . | . . . . Core Remaining (%) 94 | 100 88 . . Volleys Fired 41 | . 30 10 1 Largest 2 | . 2 2 2 Hottest 60 | . 50 40 60 Shots Fired 58 | . 38 18 2 Gun 55 | . 37 18 . Cannon . | . . . . Launcher 3 | . 1 . 2 Special . | . . . . Kinetic 55 | . 37 18 . Thermal . | . . . . Explosive 3 | . 1 . 2 Electromagnetic . | . . . . Robot Hit Streak 7 | . 7 7 . Robot Miss Streak 2 | . 2 2 . Penetration Max . | . . . . Secondary Targets . | . . . . Shots Hit Robots 72 | . 22 41 9 Core Hits 22 | . 12 7 3 Critical Hits . | . . . . Critical Kills . | . . . . Critical Parts Destroyed . | . . . . Melee Attacks 44 | . . 32 12 Impact 44 | . . 32 12 Slashing . | . . . . Piercing . | . . . . Sneak Attacks 1 | . . . 1 Combat Hostiles . | . . . . Follow-up Attacks 7 | . . 6 1 Damage Inflicted 1435 | . 402 710 323 Guns 421 | . 294 127 . Cannons . | . . . . Explosions 187 | . 108 . 79 Melee 826 | . . 582 244 Ramming 1 | . . 1 . Kinetic 421 | . 294 127 . Thermal 77 | . 77 . . Explosive 110 | . 31 . 79 Electromagnetic . | . . . . Impact 826 | . . 582 244 Slashing . | . . . . Piercing . | . . . . Highest Corruption . | . . . . Average Corruption . | . . . . Corruption Purged . | . . . . Overload Shots . | . . . . Overflow Damage 123 | . . 48 75 Projectiles . | . . . . Explosions . | . . . . Melee 123 | . . 48 75 Knockbacks 2 | . . 1 1 Impact 2 | . . 1 1 Kinetic . | . . . . Secondary . | . . . . Self-Inflicted Damage . | . . . . Shots . | . . . . Rammed 1 | . . 1 . Targets Rammed 1 | . . 1 . Kicked . | . . . . Crushed . | . . . . Highest Temperature 9 | . 2 9 1 Average Temperature 6 | . 2 9 1 Received Heat Transfer 408 | . 6 135 267 Siege Activations . | . . . . Robots Corrupted . | . . . . Combat Hostiles . | . . . . Parts Fried 2 | . . 1 1 Impact Corruptions 8 | . . 6 2 Robots Melted . | . . . . Combat Hostiles . | . . . . Parts Melted . | . . . . Heat Transferred 50 | . 50 . . Parts Sabotaged . | . . . . Parts Stolen . | . . . . Parts Stripped . | . . . . Power Chain Reactions . | . . . . Missiles Intercepted . | . . . . Alert | -11 -10 -9 -9 ------- Run | Scr Mat Mat Sto Peak Influence 245 | . 245 168 122 Initial 70 | . . 18 70 Average 124 | . 175 106 78 Maximum Alert Level 1 | . 1 . . Low Security (%) 75 | 100 43 100 100 Level 1 24 | . 56 . . Level 2 . | . . . . Level 3 . | . . . . Level 4 . | . . . . Level 5 . | . . . . High Security . | . . . . Max Security . | . . . . Squads Dispatched . | . . . . Investigation . | . . . . Extermination . | . . . . Reinforcement . | . . . . Assault . | . . . . Garrison . | . . . . Intercept . | . . . . Construction Impeded . | . . . . Haulers Reinforced . | . . . . Stealth | -11 -10 -9 -9 --------- Run | Scr Mat Mat Sto Distress Signals . | . . . . Communications Jammed . | . . . . Distress Signals . | . . . . Times Spotted 21 | . 9 6 6 Peak Tracking Total 6 | . 3 5 6 Tactical Retreats 1 | . 1 . . Traps | -11 -10 -9 -9 ------- Run | Scr Mat Mat Sto Traps Triggered 1 | . 1 . . Indirectly . | . . . . Trap Hack Attempts . | . . . . Triggered . | . . . . Disarmed . | . . . . Reprogrammed . | . . . . Reused . | . . . . Traps Extracted . | . . . . Installed . | . . . . Triggered . | . . . . Machines | -11 -10 -9 -9 ---------- Run | Scr Mat Mat Sto Machines Disabled 5 | . 3 . 2 Max in Single Turn 3 | . 3 . 2 Machines Sabotaged . | . . . . Garrisons Compromised . | . . . . Overloaded Fab Kills . | . . . . Fab Network Shutdowns . | . . . . Hacking | -11 -10 -9 -9 --------- Run | Scr Mat Mat Sto Machines Accessed 4 | . 2 1 1 Terminals 3 | . 1 1 1 Fabricators . | . . . . Repair Stations . | . . . . Recycling Units 1 | . 1 . . Scanalyzers . | . . . . Garrison Access . | . . . . Total Hacks 7 | . 3 2 2 Successful 5 | . 2 1 2 Failed 2 | . 1 1 . Catastrophic . | . . . . Database Lockouts . | . . . . Manual . | . . . . Terminals 6 | . 2 2 2 Fabricators . | . . . . Repair Stations . | . . . . Recycling Units 1 | . 1 . . Scanalyzers . | . . . . Garrison Access . | . . . . Terminal Hacks 4 | . 1 1 2 Prototype ID Bank 1 | . . 1 . Surveillance Status 1 | . . . 1 Hauler Manifests 2 | . 1 . 1 Fabricator Hacks . | . . . . Repair Station Hacks . | . . . . Recycling Unit Hacks 1 | . 1 . . Retrieve Components 1 | . 1 . . Scanalyzer . | . . . . Garrison Access Hacks . | . . . . Unauthorized Hacks . | . . . . Terminals . | . . . . Fabricators . | . . . . Repair Stations . | . . . . Recycling Units . | . . . . Scanalyzers . | . . . . Garrison Access . | . . . . Data Cores Recovered . | . . . . Used . | . . . . Hacking Detections 3 | . 2 . 1 Full Trace Events . | . . . . Feedback Events . | . . . . Feedback Blocked . | . . . . Robot Schematics Acquired . | . . . . Robots Built . | . . . . Matter . | . . . . Time . | . . . . Total Robot Build Rating . | . . . . Part Schematics Acquired . | . . . . Parts Built . | . . . . Matter . | . . . . Time . | . . . . Total Part Build Rating . | . . . . Parts Repaired . | . . . . Time . | . . . . Parts Recycled . | . . . . Recycled Matter . | . . . . Retrieved Matter . | . . . . Retrieved Components 3 | . 3 . . Parts Scanalyzed . | . . . . Part Schematics Acquired . | . . . . Parts Damaged . | . . . . Bothacking | -11 -10 -9 -9 ------------ Run | Scr Mat Mat Sto Used RIF Installer . | . . . . Robots Hacked . | . . . . Non-combat . | . . . . Combat . | . . . . Robot Hacks Applied . | . . . . Relay Couplers Released . | . . . . Robots Rewired . | . . . . Allies Hacked . | . . . . Hacks Repelled . | . . . . Allies | -11 -10 -9 -9 -------- Run | Scr Mat Mat Sto Total Allies . | . . . . Largest Group . | . . . . Highest-Rated Group . | . . . . Highest-Rated Ally . | . . . . Total Orders . | . . . . Ally Attacks . | . . . . Total Damage . | . . . . Kills . | . . . . Allies Corrupted . | . . . . Allies Melted . | . . . . Intel | -11 -10 -9 -9 ------- Run | Scr Mat Mat Sto Robot Analysis Total . | . . . . Derelict Logs Recovered . | . . . . Drone Launches . | . . . . Drone Recoveries . | . . . . Exploration | -11 -10 -9 -9 ------------- Run | Scr Mat Mat Sto Turns Passed 965 | 62 412 350 141 Spaces Moved 491 | 56 225 150 60 Core 30 | 23 . . 7 Treads 132 | . . 79 53 Legs 329 | 33 225 71 . Wheels . | . . . . Hover . | . . . . Flight . | . . . . Fastest Speed 50 | 50 120 150 160 Average Speed 144 | 91 139 156 181 Slowest Speed 350 | 120 150 210 350 Overloaded Moves . | . . . . Propulsion Burnouts . | . . . . Robots Hopped . | . . . . Cave-ins Triggered . | . . . . Exploration Rate (%) 16 | 4 38 14 11 Regions Visited 3 Branch Regions 1 Pre-discovered Areas . | . . . . Known Exits Taken . | . . . . Unknown Exits Taken 3 | 1 1 1 . Scrap Searched . | . . . . Spaces Dug . | . . . . Terrain Destroyed 28 | . 16 . 12 Melee . | . . . . Projectile . | . . . . AOE 28 | . 16 . 12 Terrain Rammed . | . . . . Walls Destroyed . | . . . . Machines Disabled . | . . . . Actions | -11 -10 -9 -9 --------- Run | Scr Mat Mat Sto Total 649 | 70 290 214 75 Wait 6 | . 6 . . Move 488 | 55 224 149 60 Hop . | . . . . Pick Up 29 | 7 17 5 . Fast Attach . | . . . . Attach 22 | 6 4 10 2 Detach 10 | 1 2 6 1 Swap 2 | . 1 1 . Drop 13 | 1 6 6 . Fire 41 | . 30 10 1 Melee 37 | . . 26 11 Ram . | . . . . Kick 1 | . . 1 . Crush . | . . . . Escape Stasis . | . . . . Rewire . | . . . . Trap . | . . . . Miscellaneous . | . . . . Route ------- -11/Scrapyard -10/Materials -9/Materials -9/Storage History --------- Turn | Location | Event 5 | -11/Scrapyard | Discovered new exit (range 16) 63 | -11/Scrapyard | Entered Materials 308 | -10/Materials | Build established: Mutant 384 | -10/Materials | Discovered new exit (range 15) 475 | -10/Materials | Entered another Materials area 475 | -9/Materials | Evolved 2 slots: Propulsion x1, Utility x1 672 | -9/Materials | Discovered new exit (range 15) 825 | -9/Materials | Entered Storage 934 | -9/Storage | Core integrity fell below 50% 955 | -9/Storage | Core integrity fell below 20% 966 | -9/Storage | Destroyed by Y-45 Defender with Beam Rifle Last Messages --------------- 5x Imp. Aluminum Leg Sneak attack on K-01 Serf. Destroyed Sml. Matter Pod. Destroyed Lgt. Ion Engine. K-01 Serf system corrupted by crushing effect. K-01 Serf knocked back. K-01 Serf system terminally corrupted. Wheel fried. K-01 Serf collects debris. Ion Engine destroyed. W-16 Scout destroyed. U-05 Engineer lays Concrete. Lgt. Treads destroyed. Hrd. Light Armor Plating destroyed. Flail follow-up attack on Y-45 Defender. Lgt. Treads destroyed. Flail destroyed. G-34 Mercenary destroyed. Component Storage disabled. G-34 Mercenary destroyed. Map ----- +----------------------------------------------------+ | | | | | | | | | | | | | | | | | | | | | | | | | | | | | | | | | | | ??????????????????????????????????????????????? | | ??????????????######################??????????? | | ??????????????# #??????????? | | ??????????????# #??????????? | | ??????????????# #??????????? | | ??????????????# ######## #########??????????? | | ??????????????# ####T###Y####???????????????? | | ??????????????# # s #???????????????? | | ??????????????# # """@""" #???????????????? | | ????????????### # """ """ #???????????????? | | ????????????#"" % + "" " " #???????????????? | | ????????????#"Y # "" #???????????????? | | ????????????#"" #[ %= % " #???????????????? | | ????????????### #% * * #???????????????? | | ?????????????## ### ###???????????????? | | ????????###### ### r ##?????????????????? | | ? ??????????????? | | ? ??????????????? | | ? =% k a ??????????????? | | ??############ ########## ??????????????? | | ?????????????###+###??????????????????????????? | | ??????????????????????????????????????????????? | | ??????????????????????????????????????????????? | | ??????????????????????????????????????????????? | | ??????????????????????????????????????????????? | | ??????????????????????????????????????????????? | | ??????????????????????????????????????????????? | | ??????????????????????????????????????????????? | | ??????????????????????????????????????????????? | | ??????????????????????????????????????????????? | | ??????????????????????????????????????????????? | | ??????????????????????????????????????????????? | | ??????????????????????????????????????????????? | +----------------------------------------------------+ Best States ------------- Heat Dissipation 28 Energy Generation 12 Energy Capacity 265 Matter Stores 300 Matter Capacity 300 Sight Range 16 Terrain Scan Density 10 ECM Strength 1 Armor Coverage 150 Evasion (%) 50 Targeting Accuracy 5 Recoil Reduction 3 Item Schematics ----------------- None Robot Schematics ------------------ None Fabricated ------------ Nothing Alien Tech Used ----------------- None Achievements -------------- None Challenges ------------ None Game ------ Seed WarpHardlightMallet Manual? 0 Play Time 00:10:15 Cumulative 6.7 hours Start 2021.12.24 @ 12:27:55 End 2021.12.24 @ 12:36:52 Sessions 1 Manual Loads 0 Difficulty Rogue Special Mode None Game No. 9 Rogue 9 Adventurer 0 Explorer 0 Win Type - Total 0 Types 0/0/0/0/0/0/0/0/0 Lore% 12 Gallery% 19 Achievement% 13 Wizard Run 0 Options --------- ASCII 0 Keyboard 1 Movement Numpad Keybinds 0 Fullscreen 1 Font 24/Proggy Map View 76x50 Tactical HUD 0 Map Filters NONE Filters NONE Steam 1 RUN: 17a6f614-d0df-49f0-9695-cb1bccac73d9